Cogmind - Beta 14 @@@ ROGUE MODE // 2025.01.04 @ 17:40:54 Player: Darsidian Result: Destroyed by G-67 Veteran with Field Laser Performance ------------- Evolutions (4) 2000 Regions Visited (9) 1800 Robots Destroyed (174) 870 Value Destroyed (6443) 6443 Prototype IDs (46) 920 Alien Tech Used (0) 0 Bonus (2745) 2745 TOTAL SCORE: 14778 Bonus ------- High Alert Combat Kills 957 Follower Combat Kills 464 Entered Garrisons 200 Used RIF Installer 1000 Aligned with FarCom 300 Friendly Fire -176 Cogmind --------- Core Integrity 0/850 Matter 275/300 Energy 54/100 System Corruption 4% Temperature Cool (12) Movement Core (50) Location -6/Factory Parts ------- > --- POWER (1) -------- (None) > --- PROPULSION (4) --- (None) > --- UTILITY (8) ------ Improved Terrain Scan Processor Improved Target Analyzer Relay Coupler [Duelist] (13) > --- WEAPON (2) ------- (None) > --- INVENTORY (5) ---- Enhanced Nuclear Core Transport Network Coupler Guided EMP Blaster Long-range Missile Launcher Peak State ------------ > --- POWER ------------ Enhanced Nuclear Core > --- PROPULSION ------- Wheel Compact Wheel Armored Huge Wheel > --- UTILITY ---------- Advanced Heat Sink Humpback Advanced Targeting Computer Improved Heavy Armor Plating Relay Coupler [NC] Improved System Restoration Module > --- WEAPON ----------- Heavy Phase Cannon Field Lobotomy Kit > --- INVENTORY -------- Fission Core Medium Treads Wheel Wheel Wheel High-capacity Matter Pod Experimental Sensor Array Advanced Terrain Scanner Improved Terrain Scan Processor Improved Target Analyzer Weapon Cycler Improved Propulsion Shielding Improved Medium Armor Plating Authchip [R/NC] Authchip [Device] Relay Coupler [NC] Relay Coupler [Swarmer] Relay Coupler [Swarmer] Relay Coupler [Duelist] Improved Trap Extractor High-powered Shock Rifle Heavy Laser Heavy Laser Long-range Proton Cannon Disruptor Cannon Improved Proton Missile Launcher Long-range Missile Launcher Improved Datajack Remote Datajack Improved Plasma Cutter Heavy Pick [Rating: 69] Favorites ----------- Power Cooled Ion Engine Engine Cooled Ion Engine Power Core Enhanced Nuclear Core Propulsion Armored Wheel Treads Medium Treads Leg Aluminum Leg Wheel Armored Wheel Hover Unit Aerolev Unit Flight Unit Improved VTOL Module Utility Humpback Device Advanced Heat Sink Storage Humpback Processor Advanced Targeting Computer Hackware Relay Coupler [NC] Protection Improved Medium Armor Plating Weapon High-powered Shotgun Energy Gun Heavy Laser Energy Cannon Heavy Phase Cannon Ballistic Gun High-powered Shotgun Ballistic Cannon Mini Assault Cannon Launcher Advanced EMP Blaster Special Weapon Remote Datajack Impact Weapon Great Maul Slashing Weapon Scythe Piercing Weapon Heavy Pick Special Melee Weapon Improved Datajack Build | -11 -10 -10 -10 -9 -8 -8 -8 -8 -6 ------- Run | Yrd Mat Min Exi Min Mat Sto Gar Rec Fac Slots Evolved 8 | . . . . . 4 . . . 4 Power . | . . . . . . . . . . Propulsion 2 | . . . . . 1 . . . 1 Utility 6 | . . . . . 3 . . . 3 Weapon . | . . . . . . . . . . Parts Attached 352 | 7 17 11 1 1 56 31 45 23 160 Power 11 | 1 1 . . . 2 1 . 3 3 Engine 9 | 1 1 . . . 2 1 . 3 1 Core 2 | . . . . . . . . . 2 Reactor . | . . . . . . . . . . Propulsion 44 | 2 5 . . 1 4 3 5 . 24 Treads 7 | . . . . . . . . . 7 Leg 1 | . . . . . . . 1 . . Wheel 33 | 2 5 . . 1 3 2 4 . 16 Hover 1 | . . . . . 1 . . . . Flight 2 | . . . . . . 1 . . 1 Utility 91 | 2 3 4 1 . 12 5 6 6 52 Device 36 | 1 . 1 . . 4 2 2 4 22 Storage 6 | 1 2 . . . 1 1 . . 1 Processor 14 | . 1 1 . . 3 1 1 . 7 Hackware 13 | . . . . . 1 1 1 2 8 Protection 22 | . . 2 1 . 3 . 2 . 14 Artifact . | . . . . . . . . . . Weapon 206 | 2 8 7 . . 38 22 34 14 81 Energy Gun 39 | 1 1 3 . . 2 3 4 . 25 Energy Cannon 34 | . 3 1 . . 6 2 8 1 13 Ballistic Gun 33 | 1 2 2 . . 15 8 5 . . Ballistic Cannon 6 | . . . . . 1 . 3 . 2 Launcher 11 | . . . . . 5 . . . 6 Special Weapon 41 | . 2 . . . 3 3 8 5 20 Impact Weapon 1 | . . . . . . . . 1 . Slashing Weapon 13 | . . . . . 2 1 5 5 . Piercing Weapon 10 | . . . . . . . . . 10 Special Melee Weapon 18 | . . 1 . . 4 5 1 2 5 Unidentified Prototypes 10 | . . . . . 5 3 . . 2 Parts Lost 32 | . 2 . . 1 1 . 1 . 27 Power 2 | . . . . . . . . . 2 Propulsion 15 | . 1 . . 1 . . . . 13 Utility 11 | . . . . . 1 . 1 . 9 Weapon 4 | . 1 . . . . . . . 3 Highest Loss Streak 8 | . 2 . . 1 1 . 1 . 8 To Critical Strikes . | . . . . . . . . . . Average Slot Usage (%) 89 | . 99 100 100 100 89 89 85 88 86 Engine 7 | . 14 14 14 14 8 9 9 7 2 Core 1 | . . . . . . . . . 3 Wheel 25 | . 27 28 28 28 26 27 27 27 21 Device 5 | . 10 . . . . 3 1 7 8 Storage 8 | . 14 14 14 14 9 8 9 9 5 Processor 10 | . 3 5 . . 8 14 10 18 11 Hackware 5 | . . . . . 8 . 2 1 9 Protection 5 | . . 8 13 14 8 9 9 . 5 Energy Gun 2 | . 5 5 . . . 6 2 . 3 Energy Cannon 5 | . 13 11 14 14 5 . 3 2 4 Ballistic Gun 4 | . 8 10 14 14 8 10 5 . . Special Weapon 1 | . . . . . . . 2 4 1 Slashing Weapon 1 | . . . . . 1 . 1 5 . Peak Build Rating 69 | 7 12 19 20 20 37 38 49 48 69 Average Rating 39 | 4 10 16 19 19 30 34 41 41 53 On Entrance 23 | . 7 12 17 20 20 35 38 48 39 Naked Turns . | . . . . . . . . . . Heaviest Build 244 | 13 51 62 62 62 229 227 241 226 244 Greatest Support 60 | 20 24 24 24 24 36 36 36 36 60 Greatest Overweight (x) 8 | . 4 2 2 5 6 6 6 6 8 Average Overweight (x) 4 | . 1 2 2 2 6 6 5 5 3 Largest Inventory Capacity 35 | 8 20 20 20 20 35 35 35 35 35 Average Capacity 32 | 6 16 20 20 20 35 34 35 35 34 Most Carried 35 | 1 17 20 20 20 26 28 35 35 35 Average Carried 26 | . 13 19 18 19 18 24 31 34 29 Final Capacity 35 | 8 20 20 20 20 35 35 35 35 5 Final Carried 35 | 1 17 20 20 19 25 28 35 32 5 Class Distribution -------------------- 34% | Bothacker-Mutant 28% | Hauler-Mutant 17% | Mutant 8% | Commander-Mutant 5% | Commander-Skirmisher Dominant Class ---------------- Mutant | -10/Materials Mutant | -10/Mines Mutant | -10/Exiles Mutant | -9/Mines Hauler-Mutant | -8/Materials Hauler-Mutant | -8/Storage Hauler-Mutant | -8/Garrison Bothacker-Mutant | -8/Recycling Bothacker-Mutant | -6/Factory Resources | -11 -10 -10 -10 -9 -8 -8 -8 -8 -6 ----------- Run | Yrd Mat Min Exi Min Mat Sto Gar Rec Fac Matter Collected 5860 | 253 454 131 66 . 1014 594 569 692 2087 Remotely . | . . . . . . . . . . Salvage Created 7848 | 18 1006 111 . . 1140 829 467 986 3291 Parts 391 | 3 67 8 . . 87 38 21 30 137 Haulers Intercepted 13 | . 1 . . . 4 5 . . 3 Recyclers Shooed 4 | . 1 . . . . 1 . 1 1 Parts Field Recycled . | . . . . . . . . . . Retrieved Matter . | . . . . . . . . . . Parts Self-Destructed . | . . . . . . . . . . Prevented . | . . . . . . . . . . Kills | -11 -10 -10 -10 -9 -8 -8 -8 -8 -6 ------- Run | Yrd Mat Min Exi Min Mat Sto Gar Rec Fac Combat Hostiles Destroyed 133 | . 21 6 . . 27 12 13 1 53 Guns 61 | . 8 6 . . 15 11 8 . 13 Cannons 46 | . 12 . . . 4 . 3 1 26 AOE 19 | . . . . . 7 1 . . 11 Classes Destroyed 15 | 1 7 . . . 3 . 1 1 2 Worker 8 | . 1 . . . 3 . . . 4 Builder 3 | . . . . . 1 . . . 2 Tunneler 2 | 1 . . . . . 1 . . . Hauler 13 | . 1 . . . 4 5 . . 3 Recycler 7 | . 3 . . . 2 . . 1 1 Mechanic 1 | . . . . . . . . . 1 Operator 1 | . 1 . . . . . . . . Watcher 10 | . 3 . . . 3 2 . . 2 Swarmer 43 | . 9 6 . . 14 3 3 . 8 Saboteur 1 | . . . . . . . . . 1 Grunt 55 | . 12 . . . 8 4 4 . 27 Brawler 4 | . . . . . . . . 1 3 Sentry 10 | . . . . . 4 4 1 . 1 Hunter 6 | . . . . . 1 1 3 . 1 Programmer 14 | . . . . . . . 2 . 12 Best Kill Streak 10 | 1 5 6 . . 7 5 2 1 10 Combat Bots Only 6 | . 5 6 . . 4 5 2 1 5 Max Kills in Single Turn 3 | 1 1 1 . . 3 1 1 1 3 Gunslinging 1 | . . . . . 1 . . . . Exploded 3 | . . . . . 2 1 . . 3 Melee . | . . . . . . . . . . Uniques/NPCs Destroyed . | . . . . . . . . . . Combat | -11 -10 -10 -10 -9 -8 -8 -8 -8 -6 -------- Run | Yrd Mat Min Exi Min Mat Sto Gar Rec Fac Hostile Shots Fired 738 | . 85 20 . 3 95 28 111 10 386 Missed 215 | . 21 4 . 1 31 7 32 1 118 Damage Taken 7424 | . 605 165 . 25 852 263 1170 129 4215 Core 1353 | . 116 28 . . 78 42 183 49 857 Absorbed by Shields 711 | . . . . . . 44 50 7 610 Redirected to Shielding 44 | . . . . . . . . . 44 Regen/Repaired (Parts) 1292 | . 81 . . . 287 123 . . 801 Core Remaining (%) 59 | 100 . . . 42 . . . 36 . Volleys Fired 493 | 3 71 9 . . 76 44 58 33 199 Largest 2 | 2 2 2 . . 2 2 2 1 2 Hottest 165 | 70 110 90 . . 100 75 115 81 165 Shots Fired 835 | 6 139 18 1 . 131 89 102 33 316 Gun 436 | 6 68 18 . . 77 89 65 . 113 Cannon 286 | . 69 . 1 . 38 . 33 3 142 Launcher 26 | . . . . . 13 . . . 13 Special 87 | . 2 . . . 3 . 4 30 48 Kinetic 236 | 3 45 . . . 69 58 55 . 6 Thermal 412 | 3 94 . 1 . 40 . 20 10 244 Explosive 17 | . . . . . 13 . . . 4 Electromagnetic 99 | . . 18 . . 8 31 25 3 14 Robot Hit Streak 25 | 1 13 7 . . 10 12 14 16 25 Robot Miss Streak 6 | 5 3 2 . . 5 6 4 2 3 Penetration Max . | . . . . . . . . . . Secondary Targets 4 | . . 1 . . 1 . 2 . . Max Gunslinging Chain 1 | . . 1 . . 1 . 1 . . Shots Hit Robots 636 | 1 86 13 . . 84 73 71 68 240 Core Hits 304 | 1 40 7 . . 59 37 28 9 123 Critical Kills 5 | . . . . . 2 . 1 . 2 Critical Parts Destroyed 1 | . . . . . . . 1 . . Critical Strikes 18 | . 4 . . . 2 . 2 1 9 Burn 10 | . 4 . . . . . . . 6 Meltdown 5 | . . . . . 2 . 1 . 2 Destroy 1 | . . . . . . . 1 . . Blast 1 | . . . . . . . . . 1 Sever 1 | . . . . . . . . 1 . Melee Attacks 104 | . . 1 . . 11 6 17 41 28 Impact 1 | . . . . . . . . 1 . Slashing 38 | . . . . . 5 1 11 21 . Piercing 26 | . . . . . . . . . 26 Sneak Attacks 38 | . . 1 . . 9 5 4 17 2 Combat Hostiles 16 | . . . . . . . 3 13 . Follow-up Attacks . | . . . . . . . . . . Damage Inflicted 15700 | 12 1282 112 . . 2286 1457 1707 1420 7424 Guns 5711 | 12 614 112 . . 853 1386 947 . 1787 Cannons 5694 | . 668 . . . 500 . 706 45 3775 Explosions 2704 | . . . . . 743 71 54 . 1836 Melee 1449 | . . . . . 190 . . 1233 26 Ramming . | . . . . . . . . . . Kinetic 2950 | . 393 . . . 789 814 821 . 133 Thermal 7480 | 12 889 . . . 500 71 429 142 5437 Explosive 1738 | . . . . . 743 . . . 995 Electromagnetic 2083 | . . 112 . . 64 572 457 45 833 Impact . | . . . . . . . . . . Slashing 1423 | . . . . . 190 . . 1233 . Piercing 26 | . . . . . . . . . 26 Highest Corruption 10 | . 4 4 4 4 2 2 10 10 4 Average Corruption 4 | . 3 4 4 4 2 2 3 10 1 Corruption Purged 6 | . . . . . . . . . 6 Corruption Blocked 3 | . . . . . . . 2 . 1 Effects 243 | . 11 19 13 . 2 20 44 89 45 Message Errors 52 | . 1 3 5 . 1 5 6 19 12 Matter Fused 64 | . 5 5 4 . . 8 11 26 5 Heat Flow Errors 29 | . 1 2 1 . 1 1 6 8 9 Energy Discharges 34 | . 2 2 . . . 2 6 17 5 Parts Rejected 3 | . . . . . . . 1 2 . Parts Fused 3 | . . . . . . . 1 2 . Data Loss (minor) 30 | . 1 4 2 . . 2 4 9 8 Data Loss (major) 5 | . . 2 . . . . 1 1 1 Misfires 7 | . . . 1 . . 1 4 . 1 Alerts 9 | . 1 1 . . . 1 3 3 . Misdirections 2 | . . . . . . . . 2 . Weapon Failures 5 | . . . . . . . 1 . 4 Overload Shots . | . . . . . . . . . . Overflow Damage 767 | . 17 . . . 21 . 44 449 236 Projectiles 227 | . 17 . . . . . 44 6 160 Explosions 97 | . . . . . 21 . . . 76 Melee 443 | . . . . . . . . 443 . Knockbacks . | . . . . . . . . . . Impact . | . . . . . . . . . . Kinetic . | . . . . . . . . . . Secondary . | . . . . . . . . . . Self-Inflicted Damage 394 | . . . . . 40 . 32 . 322 Shots 7 | . . . . . 1 . 1 . 5 Rammed . | . . . . . . . . . . Targets Rammed . | . . . . . . . . . . Kicked . | . . . . . . . . . . Crushed . | . . . . . . . . . . Highest Temperature 464 | 27 292 184 127 . 267 195 278 271 464 Average Temperature 87 | 14 63 57 52 . 86 45 97 87 106 Received Heat Transfer 1865 | . 198 . . . 360 83 133 34 1057 Effects 15 | . 4 . . . . . 3 1 7 Shutdowns 1 | . . . . . . . . . 1 Energy Bleed 2 | . 1 . . . . . . . 1 Interference 11 | . 3 . . . . . 3 1 4 Damage (minor) 1 | . . . . . . . . . 1 Siege Activations . | . . . . . . . . . . Robots Corrupted 2 | . . . . . . 1 1 . . Combat Hostiles 1 | . . . . . . . 1 . . Parts Fried 5 | . . . . . . 3 1 . 1 Impact Corruptions . | . . . . . . . . . . Robots Melted 7 | . 1 . . . 2 . 1 . 3 Combat Hostiles 6 | . 1 . . . 1 . 1 . 3 Parts Melted 24 | . 1 . . . 1 . 1 . 21 Heat Transferred 11640 | 37 2368 . . . 740 100 300 333 7762 Parts Sabotaged 4 | . . . . . . . . . 4 Parts Stolen . | . . . . . . . . . . Parts Stripped . | . . . . . . . . . . Power Chain Reactions 4 | . . . . . . 1 2 . 1 Alert | -11 -10 -10 -10 -9 -8 -8 -8 -8 -6 ------- Run | Yrd Mat Min Exi Min Mat Sto Gar Rec Fac Peak Influence 1448 | 5 282 227 . . 460 323 1448 694 1436 Initial 651 | . 3 57 . . . 163 162 651 97 Average 357 | 1 113 94 . . 152 210 678 411 396 Maximum Alert Level 4 | . 1 1 . . 2 1 4 2 4 Low Security (%) 38 | 100 88 67 . 100 63 39 5 . 43 Level 1 29 | . 11 32 . . 31 60 22 54 19 Level 2 16 | . . . . . 5 . 18 45 18 Level 3 9 | . . . . . . . 39 . 8 Level 4 5 | . . . . . . . 14 . 10 Level 5 . | . . . . . . . . . . High Security . | . . . . . . . . . . Max Security . | . . . . . . . . . . Squads Dispatched 42 | . 6 . . . 3 3 . . 30 Investigation 10 | . 2 . . . 2 1 . . 5 Extermination 11 | . . . . . . . . . 11 Reinforcement 9 | . 4 . . . 1 1 . . 3 Assault 8 | . . . . . . . . . 8 Garrison 4 | . . . . . . 1 . . 3 Intercept . | . . . . . . . . . . Searches Triggered . | . . . . . . . . . . Construction Impeded . | . . . . . . . . . . Haulers Reinforced 1 | . . . . . . . . . 1 Active Scanning Responses . | . . . . . . . . . . Cargo Convoy Interrupts . | . . . . . . . . . . Stealth | -11 -10 -10 -10 -9 -8 -8 -8 -8 -6 --------- Run | Yrd Mat Min Exi Min Mat Sto Gar Rec Fac Distress Signals 9 | . . . . . 3 3 . . 3 Communications Jammed . | . . . . . . . . . . Distress Signals . | . . . . . . . . . . Times Spotted 229 | . 36 6 . 4 34 22 21 6 100 Peak Tracking Total 10 | . 6 3 . 8 5 7 5 2 10 Tactical Retreats 14 | . 5 1 . . 1 . 2 . 5 Traps | -11 -10 -10 -10 -9 -8 -8 -8 -8 -6 ------- Run | Yrd Mat Min Exi Min Mat Sto Gar Rec Fac Traps Triggered 23 | . 5 2 . . . 1 10 . 5 Indirectly . | . . . . . . . . . . Trap Hack Attempts 94 | . . 8 . . . . . . 86 Triggered . | . . . . . . . . . . Disarmed . | . . . . . . . . . . Reprogrammed 8 | . . 1 . . . . . . 7 Reused 7 | . . . . . . . . . 7 Traps Extracted 1 | . . 1 . . . . . . . Installed . | . . . . . . . . . . Triggered 7 | . . . . . . . . . 7 Most Traps Carried 1 | . . 1 1 1 1 1 1 1 1 Machines | -11 -10 -10 -10 -9 -8 -8 -8 -8 -6 ---------- Run | Yrd Mat Min Exi Min Mat Sto Gar Rec Fac Machines Disabled 23 | . . . . . 3 3 6 1 10 Max in Single Turn 4 | . . . . . 2 1 1 1 4 Garrison Access 1 | . . . . . . . . . 1 Garrison Relay 5 | . . . . . . . 5 . . Machines Repaired . | . . . . . . . . . . Machines Dismantled 10 | . . . . . . 3 5 1 1 Machines Sabotaged . | . . . . . . . . . . Overloaded Fab Kills . | . . . . . . . . . . Hacking | -11 -10 -10 -10 -9 -8 -8 -8 -8 -6 --------- Run | Yrd Mat Min Exi Min Mat Sto Gar Rec Fac Machines Accessed 56 | . 8 1 2 . 11 6 3 11 14 Terminals 34 | . 5 . . . 8 4 3 5 9 Fabricators 2 | . . . . . . . . . 2 Repair Stations 4 | . 1 . . . 2 1 . . . Recycling Units 11 | . 2 . . . . . . 6 3 Scanalyzers 1 | . . . . . 1 . . . . Garrison Access 1 | . . . . . . 1 . . . Total Hacks 151 | . 21 1 2 . 33 11 7 34 42 Successful 78 | . 11 1 2 . 21 4 . 17 22 Failed 72 | . 9 . . . 12 7 7 17 20 Catastrophic 12 | . . . . . 1 2 2 3 4 Database Lockouts 1 | . 1 . . . . . . . . Manual 76 | . 20 . 1 . 23 2 7 8 15 Terminals 99 | . 16 . . . 24 7 7 17 28 Fabricators 5 | . . . . . . . . . 5 Repair Stations 12 | . 3 . . . 7 2 . . . Recycling Units 28 | . 2 . . . . . . 17 9 Scanalyzers 2 | . . . . . 2 . . . . Garrison Access 2 | . . . . . . 2 . . . Terminal Hacks 33 | . 5 1 2 . 7 1 . 7 10 Record 5 | . . . 1 . . . . . 4 Part Schematic 2 | . . . . . . . . 1 1 Robot Schematic 1 | . . . . . . . . 1 . Prototype ID Bank 8 | . 3 . . . 2 1 . 2 . Open Door 1 | . . 1 . . . . . . . Open DSF 2 | . . . . . . . . . 2 Branch Access Points 1 | . . . . . 1 . . . . Emergency Access Points 1 | . . . . . . . . 1 . Terminal Index 1 | . . . . . . . . . 1 Alert Level 1 | . . . . . 1 . . . . Unreport Threat 3 | . 1 . . . 2 . . . . Maintenance Status 1 | . . . . . . . . 1 . Hauler Manifests 2 | . . . . . 1 . . . 1 Registered Components 1 | . 1 . . . . . . . . Zone Layout 2 | . . . . . . . . 1 1 Derelict Proto ID Bank 1 | . . . 1 . . . . . . Fabricator Hacks 3 | . . . . . . . . . 3 Network Status 1 | . . . . . . . . . 1 Load Schematic 1 | . . . . . . . . . 1 Build 1 | . . . . . . . . . 1 Repair Station Hacks 11 | . 2 . . . 7 2 . . . Scan Component 6 | . 1 . . . 4 1 . . . Repair 5 | . 1 . . . 3 1 . . . Recycling Unit Hacks 15 | . 2 . . . . . . 9 4 Report Inventory 12 | . 2 . . . . . . 7 3 Retrieve Components 3 | . . . . . . . . 2 1 Scanalyzer 2 | . . . . . 2 . . . . Insert Component 1 | . . . . . 1 . . . . Analyze 1 | . . . . . 1 . . . . Garrison Access Hacks 1 | . . . . . . 1 . . . Unlock Access 1 | . . . . . . 1 . . . Unauthorized Hacks 13 | . 2 . . . 5 . . 1 5 Terminals 11 | . 2 . . . 5 . . . 4 Track 1 | . . . . . . . . . 1 Botnet 9 | . 1 . . . 5 . . . 3 Operators 1 | . 1 . . . . . . . . Fabricators . | . . . . . . . . . . Repair Stations . | . . . . . . . . . . Recycling Units 2 | . . . . . . . . 1 1 Reject 2 | . . . . . . . . 1 1 Scanalyzers . | . . . . . . . . . . Garrison Access . | . . . . . . . . . . Data Cores Recovered . | . . . . . . . . . . Used . | . . . . . . . . . . Hacking Detections 43 | . 5 . . . 11 4 3 9 11 Full Trace Events 7 | . . . . . 4 . . . 3 Feedback Events 1 | . . . . . 1 . . . . Hackware Fried 1 | . . . . . 1 . . . . Feedback Blocked . | . . . . . . . . . . Robot Schematics Acquired 1 | . . . . . . . . 1 . Robots Built 3 | . . . . . . . . . 3 Authchips 1 | . . . . . . . . . 1 Time 49 | . . . . . . . . . 49 Total Robot Build Rating 6 | . . . . . . . . . 6 Part Schematics Acquired 3 | . . . . . 1 . . 1 1 Parts Built . | . . . . . . . . . . Authchips . | . . . . . . . . . . Time . | . . . . . . . . . . Total Part Build Rating . | . . . . . . . . . . Parts Repaired 5 | . 1 . . . 3 1 . . . Time 160 | . 26 . . . 108 26 . . . Parts Recycled . | . . . . . . . . . . Recycled Matter . | . . . . . . . . . . Retrieved Matter . | . . . . . . . . . . Retrieved Components 10 | . . . . . . . . 8 2 Parts Scanalyzed 1 | . . . . . 1 . . . . Part Schematics Acquired 1 | . . . . . 1 . . . . Parts Damaged . | . . . . . . . . . . Bothacking | -11 -10 -10 -10 -9 -8 -8 -8 -8 -6 ------------ Run | Yrd Mat Min Exi Min Mat Sto Gar Rec Fac Used RIF Installer 2 | . . . . . . . 2 . . Patrol Navigation 1 | . . . . . . . 1 . . Robots Hacked 40 | . . 1 . . 5 5 2 3 24 Non-combat 28 | . . 1 . . 5 5 . . 17 Combat 12 | . . . . . . . 2 3 7 Robot Hacks Applied 46 | . . 1 . . 5 5 2 4 29 parse_system 1 | . . . . . . . . . 1 no_distress 15 | . . 1 . . 5 5 . . 4 ignore_repairs 1 | . . . . . . . . . 1 drop_inventory 1 | . . . . . . . . . 1 find_recycling 1 | . . . . . . . . . 1 ignore_parts 2 | . . . . . . . . . 2 check_alert 1 | . . . . . . . . . 1 map_route 1 | . . . . . . . . . 1 find_shortcuts 1 | . . . . . . . . 1 . link_fov 1 | . . . . . . . . . 1 reboot_system 1 | . . . . . . . . . 1 overwrite_iff 4 | . . . . . . . 1 . 3 formatsys_low 7 | . . . . . . . . . 7 formatsys_high 9 | . . . . . . . 1 3 5 Relay Couplers Released 23 | . . . . . . . 22 . 1 Machine Destruction 23 | . . . . . . . 22 . 1 Attached 10 | . . . . . . . 1 2 7 Fabnet Peak Effective % . | . . . . . . . . . . Robots Rewired 17 | . . . . . . . . 17 . Allies Hacked 2 | . . . . . . . . . 2 Hacks Repelled . | . . . . . . . . . . Allies | -11 -10 -10 -10 -9 -8 -8 -8 -8 -6 -------- Run | Yrd Mat Min Exi Min Mat Sto Gar Rec Fac Total Allies 42 | . . . . . 1 . 4 20 17 Largest Group 20 | . . . . . 1 . 1 20 20 Highest-Rated Group 324 | . . . . . 10 . 85 311 324 Highest-Rated Ally 85 | . . . . . 10 . 85 27 47 Total Orders 43 | . . . . . 5 . 2 2 34 STAY 18 | . . . . . 3 . 1 1 13 ROAM 2 | . . . . . . . 1 . 1 FOLLOW 11 | . . . . . 2 . . 1 8 GUARD 3 | . . . . . . . . . 3 AID 5 | . . . . . . . . . 5 DROP 1 | . . . . . . . . . 1 PICKUP 3 | . . . . . . . . . 3 Ally Attacks 126 | . . . . . . . 24 11 91 Total Damage 2277 | . . . . . . . 398 161 1718 Kills 20 | . . . . . . . 6 3 11 Allies Corrupted . | . . . . . . . . . . Allies Melted 1 | . . . . . . . . . 1 Field Lobotomies 4 | . . . . . 1 . 2 . 1 Intel | -11 -10 -10 -10 -9 -8 -8 -8 -8 -6 ------- Run | Yrd Mat Min Exi Min Mat Sto Gar Rec Fac Robot Analysis Total . | . . . . . . . . . . Derelict Logs Recovered 2 | . . 2 . . . . . . . Drone Launches . | . . . . . . . . . . Drone Recoveries . | . . . . . . . . . . Exploration | -11 -10 -10 -10 -9 -8 -8 -8 -8 -6 ------------- Run | Yrd Mat Min Exi Min Mat Sto Gar Rec Fac Turns Passed 17557 | 54 1363 932 612 17 2013 1337 2635 2447 6147 Spaces Moved 8735 | 44 902 662 502 13 725 509 1159 1277 2942 Core 13 | 5 . . . . . . . . 8 Treads . | . . . . . . . . . . Legs . | . . . . . . . . . . Wheels 8722 | 39 902 662 502 13 725 509 1159 1277 2934 Hover . | . . . . . . . . . . Flight . | . . . . . . . . . . Fastest Speed 50 | 50 80 120 120 120 180 180 165 165 50 Average Speed 153 | 76 107 120 120 123 180 180 179 172 152 Slowest Speed 220 | 80 150 120 120 165 180 180 180 180 220 Overloaded Moves . | . . . . . . . . . . Propulsion Burnouts . | . . . . . . . . . . Robots Hopped . | . . . . . . . . . . Cave-ins Triggered . | . . . . . . . . . . Exploration Rate (%) 59 | 4 90 97 81 9 48 55 84 90 40 Regions Visited 9 Branch Regions 5 Pre-discovered Areas 2 | . . 1 1 . . . . . . Known Exits Taken 3 | . . 1 . . 1 1 . . . Unknown Exits Taken 5 | 1 1 . 1 1 . . . 1 . Scrap Searched 1 | . . 1 . . . . . . . Spaces Dug 26 | . 2 . . . 7 1 . 1 15 Terrain Destroyed 186 | . 2 . 1 . 52 3 10 1 117 Melee 19 | . . . . . 2 1 . 1 15 Projectile 39 | . 2 . 1 . 15 . 2 . 19 AOE 128 | . . . . . 35 2 8 . 83 Terrain Rammed . | . . . . . . . . . . Walls Destroyed . | . . . . . . . . . . Machines Disabled . | . . . . . . . . . . Actions | -11 -10 -10 -10 -9 -8 -8 -8 -8 -6 --------- Run | Yrd Mat Min Exi Min Mat Sto Gar Rec Fac Total 11792 | 54 1153 780 514 14 1272 790 1563 1451 4201 Wait 1622 | . 132 76 . 1 377 147 161 50 678 Move 8726 | 43 901 661 501 12 724 508 1158 1276 2942 Hop . | . . . . . . . . . . Pick Up 163 | 1 21 9 6 . 15 27 26 8 50 Fast Attach 45 | 7 4 1 . . 7 2 1 5 18 Attach 54 | . 2 . . 1 8 2 7 1 33 Detach 14 | . 1 . . . 3 1 3 1 5 Swap 253 | . 11 10 1 . 41 27 37 17 109 Drop 99 | . 10 5 6 . 10 6 15 13 34 Fire 493 | 3 71 9 . . 76 44 58 33 199 Melee 104 | . . 1 . . 11 6 17 41 28 Ram . | . . . . . . . . . . Kick . | . . . . . . . . . . Crush . | . . . . . . . . . . Escape Stasis 74 | . . . . . . . 63 . 11 Rewire 1 | . . . . . . . . 1 . Trap 94 | . . 8 . . . . . . 86 Miscellaneous 50 | . . . . . . 20 17 5 8 Route ------- -11/Scrapyard -10/Materials (discovered 5 exits: *Mat x3 / *Min x2) -10/Mines (discovered 3 exits: *Mat x2 / *Exi) -10/Exiles (discovered 2 exits: [*Min x2]) -9/Mines -8/Materials (discovered 3 exits: [*Fac] / *Sto x2) -8/Storage -8/Garrison (discovered 3 exits: *Rec x3) -8/Recycling -6/Factory History --------- Turn | Location | Event 4 | -11/Scrapyard | Discovered new exit (range 16) 55 | -11/Scrapyard | Entered Materials 80 | -10/Materials | Discovered new exit (range 15) 181 | -10/Materials | Discovered new exit (range 16) 208 | -10/Materials | Discovered new exit (range 15) 342 | -10/Materials | Build established: Mutant 389 | -10/Materials | Discovered new exit (range 16) 624 | -10/Materials | Central database locked down 1020 | -10/Materials | Discovered new exit (range 16) 1126 | -10/Materials | Repaired Beam Cannon 1418 | -10/Materials | Entered Mines 1426 | -10/Mines | Met a Derelict bent on vengeance 1528 | -10/Mines | Learned Materials trap positions 1546 | -10/Mines | Discovered new exit (range 11) 1602 | -10/Mines | Met a Derelict who couldn't figure out how to use a Trap Extractor 1624 | -10/Mines | Core integrity fell below 50% 1691 | -10/Mines | Deemed a non-threat by the Exiles lab entrance 1691 | -10/Mines | Discovered new exit (range 5) 1733 | -10/Mines | Discovered new exit (range 12) 1740 | -10/Mines | Received a Rocket Launcher from a helpful Derelict 1880 | -10/Mines | Learned location of Storage (-8) 2158 | -10/Mines | Found a damaged Exp. Sensor Array with a note attached 2161 | -10/Mines | Found Prototype Device 2248 | -10/Mines | Identified exit to Exiles 2295 | -10/Mines | Identified exit to Materials 2350 | -10/Mines | Entered Exiles 2376 | -10/Exiles | Discovered new exit (range 15) 2421 | -10/Exiles | Met 8R-AWN 2440 | -10/Exiles | Met EX-HEX 2474 | -10/Exiles | Met EX-BIN 2524 | -10/Exiles | Aligned with FarCom system 2525 | -10/Exiles | Given EX-Vault access code 2555 | -10/Exiles | Opened EX-Vault 2562 | -10/Exiles | Found Field Lobotomy Kit 2587 | -10/Exiles | Warned to stay clear of 0b10 Research branches 2621 | -10/Exiles | Met EX-DEC 2631 | -10/Exiles | Learned location of Zion (-6) 2708 | -10/Exiles | Visited The Gauntlet 2950 | -10/Exiles | Discovered new exit (range 12) 2962 | -10/Exiles | Left Exiles lab with Field Lobotomy Kit 2962 | -10/Exiles | Entered Mines 2962 | -9/Mines | Discovered new exit (range 12) 2963 | -9/Mines | Assembled infested the area 2979 | -9/Mines | Entered Materials 2979 | -8/Materials | Evolved 4 slots: Propulsion x1, Utility x3 2980 | -8/Materials | Loaded intel: 14 trap records 3012 | -8/Materials | Identified Exp. Sensor Array 3372 | -8/Materials | Build established: Hauler-Mutant 3395 | -8/Materials | Assimilated O-16 Technician with FLK Orb 3958 | -8/Materials | Identified exit to Storage 4267 | -8/Materials | Discovered new exit (range 11) 4427 | -8/Materials | Repaired Arm. Wheel 4466 | -8/Materials | Repaired Hrd. Medium Armor Plating 4950 | -8/Materials | Repaired Deuterium Engine 4958 | -8/Materials | Hacking Suite fried by hacking feedback 4992 | -8/Materials | Entered Storage 5137 | -8/Storage | Repaired Humpback 6026 | -8/Storage | Garrison activated, responded to threat 6295 | -8/Storage | Identified exit to Garrison 6329 | -8/Storage | Entered Garrison 6409 | -8/Garrison | Triggered checkpoint 6532 | -8/Garrison | Garrison Relay disabled 6710 | -8/Garrison | Spotted B-75 Beast 6733 | -8/Garrison | Assimilated B-75 Beast with FLK Orb 6979 | -8/Garrison | Triggered checkpoint 7249 | -8/Garrison | Discovered new exit (range 8) 7279 | -8/Garrison | Triggered checkpoint 7325 | -8/Garrison | Garrison Relay disabled 7487 | -8/Garrison | Triggered checkpoint 7626 | -8/Garrison | Installed Relay Interface Framework 7807 | -8/Garrison | Expanded RIF knowledge: Patrol Navigation 8065 | -8/Garrison | Discovered new exit (range 12) 8105 | -8/Garrison | Triggered checkpoint 8165 | -8/Garrison | Garrison Relay disabled 8210 | -8/Garrison | Build established: Bothacker-Mutant 8345 | -8/Garrison | P-60 Hacker assimilated allied Trooper 3a 8360 | -8/Garrison | Assimilated P-60 Hacker with FLK Orb 8497 | -8/Garrison | Triggered checkpoint 8583 | -8/Garrison | Core integrity fell below 50% 8601 | -8/Garrison | System corruption reached 10% 8707 | -8/Garrison | Garrison Relay disabled 8717 | -8/Garrison | Garrison Relay disabled 8838 | -8/Garrison | Discovered new exit (range 10) 8911 | -8/Garrison | Triggered checkpoint 8964 | -8/Garrison | Entered Recycling 9756 | -8/Recycling | Discovered new exit (range 16) 10948 | -8/Recycling | Build established: Commander-Mutant 11411 | -8/Recycling | Entered Factory 11411 | -6/Factory | Accompanied by 18 allies 11411 | -6/Factory | Evolved 4 slots: Propulsion x1, Utility x3 11599 | -6/Factory | Fabricated L-31 Rogue (x3) 11615 | -6/Factory | Lost 3 parts (1p2n) 11935 | -6/Factory | Build established: Commander-Skirmisher 12044 | -6/Factory | Lost 3 allies 12054 | -6/Factory | Lost 3 parts (1n2u) 12099 | -6/Factory | Lost 4 allies 13713 | -6/Factory | P-60 Hacker assimilated allied Savior 3b 13715 | -6/Factory | P-60 Hacker assimilated allied Scavenger 3a 13716 | -6/Factory | P-60 Hacker assimilated allied Serf 3a 14468 | -6/Factory | Build established: Bothacker-Mutant 15711 | -6/Factory | Build established: Commander-Mutant 15719 | -6/Factory | P-60 Hacker assimilated allied Conveyor 5a 15744 | -6/Factory | Lost 3 allies 15961 | -6/Factory | First assault squad dispatched 16048 | -6/Factory | Build established: Bothacker-Mutant 16155 | -6/Factory | Assimilated G-67 Veteran with FLK Orb 16375 | -6/Factory | Garrison activated, responded to threat 16457 | -6/Factory | Core integrity fell below 50% 16487 | -6/Factory | Lost 4 parts (3n1u) 16969 | -6/Factory | P-60 Hacker assimilated allied Machinist 5a 17176 | -6/Factory | Lost 3 allies 17555 | -6/Factory | Core integrity fell below 20% 17558 | -6/Factory | Destroyed by G-67 Veteran with Field Laser Last Messages --------------- 17527_ Acquired Adv. Heat Sink. 17531_ K-01 Serf collects debris. 17537_ Critical hit (Burn: +50). 17539_ C-30 ARC bursts open, deploying its payload. 17539_ G-67 Veteran unfolds itself. 17539_ B-48 Gladiator unfolds itself. 17539_ G-50 Soldier unfolds itself. 17540_ K-01 Serf collects debris. 17542_ Arm. Huge Wheel destroyed. 17543_ K-01 Serf collects debris. 17546_ Com. Wheel destroyed. 17546_ Adv. Heat Sink destroyed. 17547_ Dropped Wheel. 17548_ Dropped Adv. Terrain Scanner. 17551_ K-01 Serf collects debris. 17553_ Adv. Targeting Computer destroyed. 17555_ Critical hit (Burn: +37). 17556_ K-01 Serf collects debris. 17557_ Hvy. Pick destroyed. 17557_ System corrupted by crushing effect (+4). Map ----- +----------------------------------------------------+ | ?#?????#???##??????? ???????????????????? | | ??#????#????????? ?????"????????????????? | | ????##?????#?#?????"????????????????????? | | ?#????????#???#?????? ??????????????????? | | ###????##????#?# "???? ?????????????????? | | ????##?#?###?##? ??????????????????????? | | #?????#?##### ##########????????????????? | | ??#????# ?????#??????????? | | ???#???# " ???????#????????? | | ###?#### "% ??#??????????????? | | #??????#""" """ ""?????###?????????? | | ????####"Y """ ""????#????????????? | | ?##??# """" """ !! "?" ?#???#?????????? | | ????## ; ? ? ??#??#???????????? | | #####;; ;;;;;;;#+######???#?????????????? | | # ! % ]]; #??##?????#???#?????? | | #" | u ########## ??????#??? | | #" ] ?????????? | | #" ] Y???????? | | # ? ???????? | | # ########????????????? | | # #?##?#?#???????#????? | | " R################??#??? | | " % # Y ??#???? | | " k # """ == """ !#?????? | | " ;; @ =/g""" == """ ##????# | | " ;; #l""" = """ #????? | | # ;# b# =# ????/ | | #";; ;""# g; g! ! ] #?#?# | | #?# ; * # ################???# " | | ##?## # g#T ##### ??? ?? ??# " | | ?#?## # i # ???"??????# " | | ###?# = """ + l # ??"??? ???# | | ?#### """ # #????????F??# " | | #?#?# """ # b # ??"??? ???# " | | ?#### "" # #????""?????# " | | #?### "" ######## #? ???????# | | #?#?# ###????# ###+########### | | ##################### # | | ?#?###?# + | | #####?## """ """ # | | #####??# """ """ # | | ?####### """ """ # # | | #?###??# ## ####+##### # | | ?####### """ """ #? #?? ???# # | | ???# +!""" """ #? # ????"??# # | | ??## ### """ """ #? #????????# + | | #### ### ! #? #????????# # | | ## # ## # ??????# # | | ?# # #? #????????# # | +----------------------------------------------------+ Best States ------------- Heat Dissipation 56 Energy Generation 18 Energy Capacity 310 Matter Stores 300 Matter Capacity 500 Sight Range 18 Robot Scan Range 20 Terrain Scan Range 20 Terrain Scan Density 110 ECM Strength 1 Corruption Block 13 Armor Coverage 600 Propulsion Shielding 66 Evasion (%) 44 Targeting Accuracy 8 Target Analysis 6 Core Analysis 6 Recoil Reduction 1 Particle Charging 15 Offensive Hacking 10 Defensive Hacking 10 Relay Coupler Types 2 Relay Coupler Value 51 Authchip Count 3 Item Schematics ----------------- Arm. Wheel | -8/Materials | Scanalyzed Adv. Targeting Computer | -8/Recycling | Hacked Myomer Leg | -6/Factory | Hacked Robot Schematics ------------------ L-31 Rogue | -8/Recycling | Hacked Fabricated ------------ L-31 Rogue | x3 | -6/Factory | Authchip Alien Tech Used ----------------- None Achievements -------------- Assassin We Are Legion Challenges ------------ None Game ------ Seed AssaultAssembledFlamer Manual? 0 Play Time 04:38:38 Cumulative 117.0 hours Start 2025.01.04 @ 10:23:45 End 2025.01.04 @ 17:40:54 Sessions 1 Manual Loads 0 Difficulty Rogue Special Mode None Game No. 36 Rogue 36 Adventurer 0 Explorer 0 Win Type - Total 0 Types 0/0/0/0/0/0/0/0/0 Lore% 18 Gallery% 41 Achievement% 37 Wizard Run 0 Options --------- Layout 0 ASCII 0 Keyboard 0 Movement Mouse Keybinds 0 Fullscreen 1 Font 36/Smallcaps Map View 76x50 Zoom Use 0% Tactical HUD 1 Map Filters NONE Filters NONE Steam 1 RUN: e4d0e8c2-cf0d-4737-9f9a-b110a1ab7469